bitfinex/quotes_ETHUSD_20241122
["timestamp","ask_amount","ask_price","bid_price","bid_amount"]
[1732243160530,0.03992719,3332.9,3332.1,0.7598]
[1732243160811,3.79937,3333.6,3332.2,0.58000676]
[1732243161039,3.79937,3333.6,3332.2,0.87970676]
[1732243161040,0.03986579,3332.8,3332.2,0.87970676]
[1732243161316,4.62423578,3333.9,3332.4,1.3708]
[1732243161317,2.99967,3333.7,3332.4,1.3708]
[1732243161519,0.0403866,3333.6,3332.4,1.3708]
[1732243161682,0.0403866,3333.6,3332.4,1.6705]
[1732243162193,3.0403866,3333.6,3332.4,1.6705]
[1732243162506,6.0401566,3333.6,3332.6,0.55]
[1732243162822,6.0401566,3333.6,3332.8,0.55]
[1732243163119,6.0401566,3333.6,3332.9,3.0004]
[1732243163515,0.0403866,3333.6,3332.9,3.0004]
[1732243163715,3.0,3333.8,3332.9,3.0004]
[1732243163888,0.0404498,3333.7,3332.9,3.0004]
[1732243164511,0.0404498,3333.7,3333.2,0.55]
[1732243164723,0.04187399,3333.9,3333.2,0.55]
[1732243164886,0.0404105,3333.6,3333.4,0.55]
[1732243165214,0.04187399,3333.9,3333.4,0.55]
[1732243165582,0.04053689,3333.8,3333.4,0.55]
[1732243165783,0.04053689,3333.8,3333.5,2.9999]
[1732243166783,0.04053689,3333.8,3333.6,0.55]
[1732243167280,0.04187399,3333.9,3333.7,1.3708]
[1732243167479,0.04187399,3333.9,3333.8,0.55]
[1732243167682,0.04187399,3333.9,3333.8,1.34259284]
[1732243167905,0.04187399,3333.9,3333.8,4.34219284]
[1732243168153,0.04187399,3333.9,3333.8,4.74641928]
[1732243168441,0.04187399,3333.9,3333.8,4.3122]
[1732243169140,0.08248824,3333.9,3333.8,2.9996]
[1732243170305,0.08248824,3333.9,3333.8,3.5496]
[1732243172331,0.08248824,3333.9,3333.8,2.9996]
[1732243172909,11.48284003,3333.9,3333.8,2.9996]
[1732243173845,0.08248824,3333.9,3333.8,2.9996]
[1732243174055,6.08197824,3333.9,3333.8,2.9996]
[1732243174209,0.08248824,3333.9,3333.8,2.9996]
[1732243174946,10.66434003,3333.9,3333.8,2.9996]
[1732243175155,11.48284003,3333.9,3333.8,2.9996]
[1732243175971,8.7616959,3333.9,3332.8,0.2997]
[1732243176126,3.0,3333.1,3332.8,0.2997]
[1732243176461,3.0,3332.8,3332.3,0.2997]
[1732243176762,0.03798795,3332.7,3332.3,0.2997]
[1732243177063,0.03798795,3332.7,3332.4,0.03000921]
[1732243177265,3.0,3333.3,3332.3,0.2997]
[1732243177578,3.0,3333.6,3332.5,0.2997]
[1732243177728,3.0,3333.6,3332.7,0.2997]
[1732243177929,0.03848165,3333.5,3332.7,0.2997]
[1732243179120,5.99967,3333.7,3332.7,0.2997]
[1732243179262,3.0,3333.4,3332.7,0.2997]
[1732243179481,3.00003,3333.3,3332.7,0.2997]
[1732243179628,3.00003,3333.3,3332.6,0.55]
[1732243179629,3.00026,3333.1,3332.6,0.2997]
[1732243179829,3.0,3333.0,3332.6,0.2997]
[1732243180129,0.03817393,3333.0,3332.6,0.2997]
[1732243180371,3.0,3332.9,3332.6,0.2997]
[1732243180674,6.0004,3332.9,3332.5,0.2997]
[1732243180841,3.0,3332.6,3332.5,0.2997]
[1732243181170,6.00085,3332.4,3332.0,0.2997]
[1732243181369,0.0378809,3332.6,3332.0,0.2997]
[1732243181370,3.0,3332.5,3332.0,0.2997]
[1732243181539,0.03769117,3332.3,3332.0,0.2997]
[1732243181740,3.0,3332.5,3332.0,0.2997]
[1732243181955,3.8185,3332.7,3332.0,0.2997]
[1732243182165,0.0378802,3332.6,3332.0,0.2997]
[1732243183078,0.0378802,3332.6,3330.8,0.03001336]
[1732243183079,0.0378802,3332.6,3331.0,0.2997]
[1732243183261,3.0,3332.3,3331.0,0.2997]
[1732243183575,0.03762722,3332.2,3331.0,0.2997]
[1732243183779,0.03762722,3332.2,3331.2,0.2997]
[1732243183982,0.03762722,3332.2,3331.6,0.2997]
[1732243184279,3.0,3332.9,3332.1,0.2997]
[1732243184773,0.7917,3333.2,3332.4,1.1071]
[1732243184774,0.03800667,3332.8,3332.4,1.1071]
[1732243185247,3.79159,3333.5,3332.4,1.1071]
[1732243185570,0.04187399,3333.9,3332.0,0.55]
[1732243185571,0.83357399,3333.9,3332.9,0.8074]
[1732243185772,0.278783,3333.8,3333.1,0.2997]
[1732243186644,0.03857559,3333.7,3333.1,0.2997]
[1732243186855,0.03857559,3333.7,3333.2,0.2997]
[1732243187172,3.03828239,3333.6,3333.2,0.2997]
[1732243187470,3.03828239,3333.6,3332.9,1.1071]
[1732243188135,3.0,3333.5,3332.9,1.1071]
[1732243188347,0.03838598,3333.4,3332.9,1.1071]
[1732243188575,3.00012,3333.2,3332.9,0.2997]
[1732243188733,3.0,3333.1,3332.9,0.2997]
[1732243189139,0.03813312,3333.0,3332.9,0.2997]
[1732243189645,0.03813312,3333.0,3332.6,0.2997]
[1732243190250,3.0,3333.8,3333.0,0.2997]
[1732243190461,3.0,3333.8,3333.2,0.2997]
[1732243190462,0.27933491,3333.7,3333.2,0.2997]
[1732243191054,0.27933491,3333.6,3333.2,0.2997]
[1732243191464,0.27933491,3333.6,3332.9,0.2997]
[1732243191664,3.0,3333.5,3332.9,0.2997]
[1732243191885,0.27933491,3333.4,3332.9,0.2997]
[1732243192296,0.27933491,3333.4,3333.1,0.2997]
[1732243192795,3.0,3333.8,3333.1,0.2997]
[1732243193093,0.27933287,3333.7,3333.1,0.2997]
[1732243193769,0.03852608,3333.6,3333.1,0.2997]
[1732243193961,0.03852608,3333.6,3333.3,0.8074]
[1732243194154,0.04187399,3333.9,3333.4,0.2997]
[1732243194383,0.03865248,3333.8,3333.5,0.55]
[1732243194776,0.03865248,3333.8,3333.5,0.8497]
[1732243195015,0.04187399,3333.9,3333.5,0.8497]
[1732243195299,0.04187399,3333.9,3333.5,0.2997]
[1732243195471,0.03866732,3333.8,3333.5,0.2997]
[1732243195885,0.03866732,3333.8,3333.3,0.8074]
[1732243195886,0.03866732,3333.8,3333.4,0.2997]
[1732243196695,0.03866732,3333.8,3333.3,1.1071]
[1732243197403,0.03866732,3333.8,3333.3,0.2997]
[1732243197603,6.03825732,3333.8,3333.1,0.55]
[1732243197926,3.03866732,3333.8,3333.1,0.8497]
[1732243198083,0.03866732,3333.8,3333.1,0.2997]
[1732243198283,3.0,3333.5,3333.1,0.2997]
[1732243198689,0.03840895,3333.4,3332.7,0.2997]
[1732243199509,0.03840895,3333.4,3332.8,0.8497]
[1732243200685,3.0,3333.6,3332.8,0.8497]
[1732243201190,0.03847216,3333.5,3332.8,0.8497]
[1732243201411,0.03847216,3333.5,3332.8,1.01541]
[1732243201595,0.03847216,3333.5,3333.1,0.2997]
[1732243201780,3.0,3333.8,3333.1,0.2997]
[1732243201984,0.03840663,3333.4,3333.1,0.2997]
[1732243202227,0.04187399,3333.9,3333.1,0.46541]
[1732243202707,0.03865943,3333.8,3333.3,0.2997]
[1732243202887,0.03865943,3333.8,3333.4,0.8074]
[1732243203509,0.03865943,3333.8,3333.5,2.9998]
[1732243203885,0.03865943,3333.8,3333.6,0.2997]
[1732243204088,3.03865943,3333.8,3333.6,0.2997]
[1732243204524,6.03826943,3333.8,3333.6,0.2997]
[1732243204825,3.83035943,3333.8,3333.6,0.2997]
[1732243205322,0.83035943,3333.8,3333.6,0.2997]
[1732243205712,3.0,3333.7,3333.6,0.2997]
[1732243206103,6.03828339,3333.7,3333.6,0.2997]
[1732243206818,6.03828339,3333.7,3333.5,2.9998]
[1732243206819,5.99976,3333.6,3333.5,2.9998]
[1732243207018,6.79146,3333.6,3333.5,2.9998]
[1732243207224,3.79209,3332.9,3332.8,0.2997]
[1732243207385,3.0,3332.6,3332.0,0.8074]
[1732243207585,3.0,3332.6,3330.6,0.01]
[1732243207586,3.0,3332.4,3330.8,0.43777585]
[1732243207810,6.03864479,3332.5,3331.1,0.2997]
[1732243207997,0.0377183,3332.3,3331.1,0.2997]
[1732243208216,3.0,3332.3,3331.1,0.2997]
[1732243208391,0.03765505,3332.2,3331.1,0.2997]
[1732243208888,6.00078,3332.5,3331.1,0.2997]
[1732243209088,0.03759179,3332.1,3331.1,0.2997]
[1732243209311,3.0,3332.2,3331.1,0.2997]
[1732243209483,0.03752853,3332.0,3331.1,0.2997]
[1732243209810,0.03746527,3331.9,3331.2,0.8497]
[1732243210014,3.00144,3331.8,3331.0,1.1071]
[1732243210200,3.00162,3331.6,3331.0,0.8074]
[1732243210412,3.03731762,3331.7,3330.0,0.8074]
[1732243210588,3.00083,3332.5,3330.0,0.8074]
[1732243210589,3.0,3331.1,3330.0,0.8074]
[1732243210792,3.00201,3331.1,3330.0,0.8074]
[1732243211100,3.03687462,3331.0,3330.1,0.2997]
[1732243211415,0.03687462,3331.0,3330.2,0.03002646]
[1732243211599,0.03687462,3331.0,3330.1,0.2997]
[1732243211804,3.0,3331.0,3330.0,0.8074]
[1732243211990,0.03681132,3330.9,3330.0,0.8074]
[1732243212185,3.03681132,3330.9,3330.0,0.8074]
[1732243212699,0.03681132,3330.9,3330.1,0.03002646]
[1732243213020,3.0,3331.5,3330.2,0.7861]
[1732243213223,0.03669838,3330.8,3330.2,0.7861]
[1732243213530,3.0,3331.2,3330.2,0.7861]
[1732243213826,3.0,3331.3,3330.2,0.7861]
[1732243214023,3.0,3330.9,3330.2,0.7861]
[1732243214224,4.58236179,3331.0,3330.2,0.7861]
[1732243214225,3.0021,3331.0,3330.2,0.7861]
[1732243214391,3.0,3330.7,3330.2,0.7861]
[1732243214590,3.0021,3331.0,3330.2,0.7861]
[1732243214591,0.03654088,3330.6,3330.2,0.7861]
[1732243214791,3.0,3330.9,3330.2,0.7861]
[1732243214991,0.0366675,3330.8,3330.2,0.7861]
[1732243215425,3.0,3331.3,3330.3,0.55]
[1732243215902,0.0369207,3331.2,3330.3,0.55]
[1732243216101,0.0369207,3331.2,3330.3,0.58002438]
[1732243216296,0.0369207,3331.2,3330.5,0.55]
[1732243216495,3.00136,3331.9,3330.7,0.55]
[1732243216693,0.78,3332.0,3330.6,0.7861]
[1732243216899,3.00172,3331.5,3330.6,0.7861]
[1732243217125,3.00147,3331.7,3329.9,0.7861]
[1732243217126,0.78,3331.7,3329.9,0.7861]
[1732243217308,4.58236179,3331.8,3329.9,0.7861]
[1732243217309,3.00239,3330.7,3329.9,0.7861]
[1732243217505,3.0,3330.5,3329.9,0.7861]
[1732243217932,0.03641425,3330.4,3329.0,0.7861]
[1732243218294,0.03641425,3330.4,3329.2,0.7861]
[1732243218533,0.03641425,3330.4,3329.3,0.81612942]
[1732243218738,3.78,3330.9,3329.4,0.55]
[1732243218948,0.03635092,3330.3,3329.7,0.55]
[1732243219168,3.78,3330.9,3329.7,0.55]
[1732243219435,6.7822,3330.9,3329.7,0.55]
[1732243219639,3.0,3330.7,3329.7,0.55]
[1732243219812,0.0366675,3330.8,3329.7,0.55]
[1732243220014,0.03654088,3330.6,3329.9,0.7861]
[1732243220242,0.0366042,3330.7,3330.2,0.55]
[1732243220533,0.03647757,3330.5,3330.2,0.58002478]
[1732243220735,3.78156,3331.6,3330.2,0.58002478]
[1732243220736,0.78,3331.6,3330.2,0.58002478]
[1732243220922,3.78121,3332.0,3330.6,0.55]
[1732243221112,0.03711055,3331.5,3330.6,0.55]
[1732243221297,3.78121,3332.0,3330.6,0.55]
[1732243221496,0.03704727,3331.4,3330.6,0.55]
[1732243221741,0.78,3332.0,3330.9,0.55]
[1732243221958,0.03576644,3331.3,3330.9,0.55]
[1732243222102,0.78,3332.0,3330.9,0.55]
[1732243222302,0.03570035,3331.2,3331.1,0.55]
[1732243222515,3.00098,3332.3,3331.1,0.55]
[1732243222805,0.03530265,3332.2,3331.1,0.55]
[1732243223135,0.03530265,3332.2,3331.3,0.55]
[1732243223347,3.0005,3332.8,3331.5,0.55]
[1732243223638,3.00091,3332.4,3331.5,0.55]
[1732243223839,4.58236179,3332.4,3331.4,0.7861]
[1732243224046,3.00139,3331.8,3329.5,0.01]
[1732243224277,3.00139,3331.8,3330.4,0.7861]
[1732243224480,3.03498634,3331.7,3330.5,0.2995]
[1732243224939,0.03498634,3331.7,3330.5,0.2995]
[1732243225144,0.03498634,3331.7,3329.4,0.01]
[1732243225145,0.03498634,3331.7,3330.8,0.2995]
[1732243225342,3.0,3332.4,3331.4,0.2995]
[1732243225650,3.03537984,3332.3,3331.4,0.2995]
[1732243226071,0.03537984,3332.3,3331.4,0.2995]
[1732243226368,3.0,3331.8,3331.4,0.2995]
[1732243226559,0.03499424,3331.7,3331.4,0.2995]
[1732243226756,3.00112,3332.1,3331.4,0.2995]
[1732243226961,3.03641404,3332.0,3331.4,0.2995]
[1732243227147,3.0,3331.9,3331.4,0.2995]
[1732243227346,0.03505751,3331.8,3331.4,0.2995]
[1732243227748,6.00181,3331.4,3331.1,0.2995]
[1732243227994,0.03474112,3331.3,3331.1,0.2995]
[1732243228466,0.03474112,3331.3,3330.7,0.7515]
[1732243228467,0.03474112,3331.3,3330.8,0.2995]
[1732243228662,3.0,3331.2,3330.8,0.2995]
[1732243228981,3.0,3330.6,3330.0,0.7515]
[1732243229185,0.796,3331.0,3330.0,0.7515]
[1732243229412,3.0,3330.4,3330.0,0.7515]
[1732243229564,3.0,3330.6,3330.0,0.7515]
[1732243229770,3.00266,3330.4,3330.0,0.7515]
[1732243229969,0.03410806,3330.3,3330.0,0.7515]
[1732243230176,3.0,3330.8,3330.0,0.7515]
[1732243230389,0.0343416,3330.7,3330.0,0.7515]
[1732243230612,3.0343416,3330.7,3330.0,0.7515]
[1732243230815,3.0,3330.6,3329.3,0.2995]
[1732243231115,3.0,3330.4,3329.3,0.2995]
[1732243231472,0.03408832,3330.3,3329.3,0.2995]
[1732243231672,0.06488474,3330.3,3329.3,0.2995]
[1732243232329,0.06488474,3330.3,3329.5,0.2995]
[1732243232620,0.06482258,3330.2,3329.5,0.2995]
[1732243232976,6.00247,3330.6,3329.5,0.2995]
[1732243233172,0.06500978,3330.5,3329.5,0.2995]
[1732243233974,3.0,3330.0,3329.2,0.7515]
[1732243234172,0.06463278,3329.9,3329.2,0.7515]
[1732243234812,6.00285,3330.2,3329.2,0.7515]
[1732243235124,0.06455132,3329.8,3329.2,0.7515]
[1732243235288,3.0,3330.0,3329.2,0.7515]
[1732243235509,0.0644889,3329.7,3329.2,0.7515]
[1732243235684,3.0,3330.0,3329.2,0.7515]
[1732243236016,4.58236179,3330.3,3329.2,0.7515]
[1732243236017,3.0,3330.2,3329.2,0.7515]
[1732243236171,0.0646077,3329.9,3329.2,0.7515]
[1732243236576,3.0,3329.8,3329.2,0.7515]
[1732243236805,0.06447266,3329.7,3329.2,0.7515]
[1732243237014,3.0,3330.0,3329.2,0.7515]
[1732243237211,0.06441023,3329.6,3329.2,0.7515]
[1732243237425,3.0,3329.5,3329.2,0.7515]
[1732243237622,3.0,3329.7,3329.2,0.7515]
[1732243237819,3.0,3329.2,3328.8,0.7515]
[1732243238321,0.06408643,3329.1,3328.8,0.7515]
[1732243238681,6.00355,3329.4,3328.8,0.7515]
[1732243238881,0.06400143,3329.0,3328.8,0.7515]
[1732243239113,3.0,3329.8,3328.8,0.7515]
[1732243239614,0.06442569,3329.7,3328.8,0.7515]
[1732243239820,0.06442569,3329.7,3329.1,0.55]
[1732243240218,3.0,3330.2,3329.3,0.55]
[1732243240514,0.06436143,3329.6,3329.3,0.55]
[1732243240686,6.00282,3330.2,3329.1,0.55]
[1732243240875,0.06430807,3329.5,3329.0,1.051]
[1732243241081,3.0,3330.0,3329.1,0.22211327]
[1732243241278,3.0,3330.0,3329.0,1.051]
[1732243241279,0.06424563,3329.4,3329.0,1.051]
[1732243241580,0.06418506,3329.3,3329.0,0.7515]
[1732243241888,3.0,3329.5,3329.0,0.7515]
[1732243242090,0.06412262,3329.2,3328.3,0.2995]
[1732243242290,7.58236179,3329.5,3328.2,0.8243]
[1732243242487,0.06406017,3329.1,3328.3,0.2995]
[1732243242688,7.58236179,3329.5,3328.3,0.2995]
[1732243242893,0.06399329,3329.0,3328.4,1.1238]
[1732243243133,7.58236179,3329.5,3328.4,0.8243]
[1732243243413,10.58581179,3329.5,3328.4,0.8243]
[1732243243625,0.0642412,3329.4,3328.5,0.55]
[1732243243917,0.0642412,3329.4,3328.4,0.8243]
[1732243244287,3.0677912,3329.4,3328.4,0.8243]
[1732243244613,4.58236179,3329.1,3328.4,0.8243]
[1732243244815,3.816,3329.0,3328.4,0.8243]
[1732243244988,3.87999143,3329.0,3328.4,0.8243]
[1732243246020,3.87999143,3329.0,3328.1,0.8243]
[1732243246596,3.87999143,3329.0,3328.1,0.55]
[1732243246830,6.88395143,3329.0,3328.1,0.55]
[1732243247001,3.0,3328.8,3327.1,0.03004384]
[1732243247308,3.0,3328.6,3327.1,0.03004384]
[1732243247825,0.06366983,3328.5,3327.1,0.03004384]
[1732243248039,0.06366983,3328.5,3326.6,0.04004774]
[1732243248385,0.06366983,3328.5,3327.0,0.2995]
[1732243248606,3.816,3329.0,3327.4,0.2995]
[1732243248927,0.06390108,3328.9,3327.6,0.2995]
[1732243249099,0.06390108,3328.9,3327.8,0.2995]
[1732243249100,3.0,3328.8,3327.8,0.2995]
[1732243249287,4.58236179,3328.7,3327.8,0.2995]
[1732243249493,3.0,3328.6,3327.8,0.2995]
[1732243249686,3.0637137,3328.6,3327.8,0.2995]
[1732243251216,0.0637137,3328.6,3327.8,0.2995]
[1732243251423,3.816,3329.0,3327.8,0.2995]
[1732243251792,0.06390084,3328.9,3327.8,0.2995]
[1732243252000,3.0,3328.6,3327.8,0.2995]
[1732243252318,0.063651,3328.5,3327.8,0.2995]
[1732243253543,0.063651,3328.5,3327.7,0.8243]
[1732243253544,0.063651,3328.5,3328.0,0.2995]
[1732243253881,0.816,3329.0,3328.0,0.2995]
[1732243254131,0.05952314,3328.4,3328.0,0.2995]
[1732243254364,0.816,3329.0,3328.0,0.2995]
[1732243254810,0.05775449,3328.9,3328.0,0.2995]
[1732243255420,0.05775449,3328.9,3328.2,0.2995]
[1732243255795,3.816,3329.3,3328.2,0.2995]
[1732243256213,0.05010029,3329.2,3328.2,0.2995]
[1732243256417,0.05010029,3329.2,3328.4,0.2995]
[1732243256919,0.05004578,3329.1,3328.6,0.2995]
[1732243257120,0.816,3329.6,3328.6,0.2995]
[1732243257328,0.04998333,3329.0,3328.8,0.2995]
[1732243257524,5.34736179,3329.9,3328.8,0.2995]
[1732243257698,5.34736179,3329.9,3329.0,0.2995]
[1732243257900,0.05048281,3329.8,3329.0,0.2995]
[1732243258426,3.76782,3330.2,3329.0,0.2995]
[1732243258639,0.765,3330.2,3329.0,0.2995]
[1732243258792,0.05067005,3330.1,3329.0,0.2995]
[1732243258988,6.05359005,3330.1,3329.0,0.2995]
[1732243259720,7.58236179,3329.8,3329.0,0.2995]
[1732243259921,3.0,3329.7,3329.0,0.2995]
[1732243260301,0.05035796,3329.6,3329.0,0.2995]
[1732243260503,0.765,3329.5,3328.2,0.2995]
[1732243260820,3.0,3329.4,3328.2,0.2995]
[1732243261026,0.05017067,3329.3,3328.2,0.2995]
[1732243261393,3.0,3329.0,3328.1,1.1154]
[1732243261701,0.7667,3328.8,3328.1,1.1154]
[1732243262226,0.0498169,3328.7,3328.1,1.1154]
[1732243262589,0.04975444,3328.6,3328.1,1.1154]
[1732243263107,6.77025,3329.4,3328.1,1.1154]
[1732243263307,0.04968546,3328.5,3328.1,1.1154]
[1732243263494,3.0,3329.1,3328.1,1.1154]
[1732243263693,3.0,3329.3,3328.1,1.1154]
[1732243263926,3.77025,3329.4,3328.2,0.87954374]
[1732243263927,0.04999938,3329.0,3328.2,0.87954374]
[1732243264226,0.05012427,3329.2,3328.8,0.774]
[1732243264427,3.7667,3329.8,3328.8,1.0735]
[1732243264639,0.05043644,3329.7,3328.8,1.0735]
[1732243265294,0.05043644,3329.7,3328.9,0.55]
[1732243265497,3.00257,3330.5,3328.9,0.55]
[1732243265498,4.58788886,3331.5,3329.6,0.2995]
[1732243265742,3.00225,3330.9,3329.7,0.03002661]
[1732243265941,3.0022,3330.9,3329.9,0.2995]
[1732243266231,0.04900031,3330.8,3330.0,0.58002938]
[1732243266447,3.00199,3331.2,3330.1,1.0735]
[1732243266591,0.04894316,3330.7,3330.1,1.0735]
[1732243266935,3.0,3330.8,3330.1,1.0735]
[1732243267437,0.81564316,3330.7,3329.9,0.2995]
[1732243267603,3.0,3330.5,3329.9,0.2995]
[1732243267926,0.04875599,3330.4,3329.5,0.774]
[1732243268135,3.0028,3330.3,3329.5,0.774]
[1732243268303,3.0,3330.2,3329.5,0.774]
[1732243268505,0.04872088,3330.3,3329.5,0.774]
[1732243268708,0.04859607,3330.1,3329.5,0.774]
[1732243268908,0.04865848,3330.2,3329.5,0.774]
[1732243269119,0.04854933,3330.0,3329.5,0.774]
[1732243269392,0.04861174,3330.1,3329.5,0.774]
[1732243269529,0.04848692,3329.9,3329.5,0.774]
[1732243269700,6.00264,3330.4,3329.5,0.774]
[1732243270020,3.0,3330.5,3329.5,0.774]
[1732243270196,0.04872824,3330.3,3329.5,0.774]
[1732243270403,3.0,3330.2,3329.5,0.774]
[1732243270637,3.04866584,3330.2,3329.5,0.774]
[1732243270851,0.04866584,3330.2,3329.5,0.774]
[1732243271146,3.0,3330.6,3329.5,0.774]
[1732243271343,3.0,3330.6,3328.2,0.01]
[1732243271344,0.7667,3331.0,3329.7,0.774]
[1732243271653,3.00219,3330.9,3329.7,0.774]
[1732243272337,5.35458886,3331.0,3329.7,0.774]
[1732243272537,3.0,3330.2,3329.7,0.774]
[1732243272937,3.0,3330.6,3329.7,0.774]
[1732243273344,3.0,3330.4,3329.7,0.774]
[1732243273740,0.04874009,3330.3,3329.7,0.774]
[1732243274253,0.04867652,3330.2,3329.7,0.774]
[1732243274442,5.35458886,3331.0,3329.7,0.774]
[1732243274443,3.0,3330.7,3329.7,0.774]
[1732243274639,0.04892611,3330.6,3329.7,0.774]
[1732243275253,3.04892611,3330.6,3329.7,0.774]
[1732243275678,6.05146611,3330.6,3329.7,0.774]
[1732243275865,3.0,3330.3,3329.7,0.774]
[1732243276086,3.0,3329.9,3329.0,0.7786]
[1732243276379,3.79314,3329.7,3329.0,0.7786]
[1732243276578,3.00345,3329.5,3328.1,0.7786]
[1732243276782,3.0,3329.6,3328.1,0.7786]
[1732243276783,3.0,3329.3,3328.1,0.7786]
[1732243276983,0.7898,3329.7,3328.1,0.7786]
[1732243276984,0.04817004,3329.4,3328.1,0.7786]
[1732243277152,0.04804516,3329.2,3328.3,0.7786]
[1732243277484,3.7898,3329.7,3328.3,0.7786]
[1732243277485,0.04798248,3329.1,3328.3,0.7786]
[1732243277779,6.00308,3330.0,3328.4,0.80864075]
[1732243277948,0.04791315,3329.0,3328.4,0.80864075]
[1732243278144,6.00309,3329.9,3328.4,0.80864075]
[1732243278389,6.00309,3329.9,3328.4,0.7786]
[1732243278682,0.04841239,3329.8,3328.5,0.03003958]
[1732243278883,3.04841239,3329.8,3328.5,0.7786]
[1732243279179,3.04841239,3329.8,3328.7,0.7786]
[1732243279435,0.04841239,3329.8,3328.9,0.7786]
[1732243279756,0.7898,3330.1,3328.9,0.7786]
[1732243280093,3.00306,3330.0,3328.9,0.7786]
[1732243280387,3.04854007,3330.0,3328.9,0.7786]
[1732243280587,3.0,3329.8,3328.9,0.7786]
[1732243280819,3.0,3329.6,3328.9,0.7786]
[1732243281092,3.04822962,3329.5,3328.9,0.7786]
[1732243281293,3.04822962,3329.5,3328.0,0.7786]
[1732243281294,3.00363,3329.3,3328.0,0.7786]
[1732243281507,3.0,3329.2,3328.0,0.7786]
[1732243281795,3.04804184,3329.2,3328.0,0.7786]
[1732243281999,0.04804184,3329.2,3328.0,0.80864176]
[1732243282694,0.7898,3330.0,3328.0,0.80864176]
[1732243282695,3.0,3329.8,3328.4,0.7786]
[1732243282890,0.04797299,3329.1,3328.4,0.7786]
[1732243283095,3.0,3329.8,3328.4,0.7786]
[1732243283299,0.04791054,3329.0,3328.4,0.7786]
[1732243283507,3.00382,3329.1,3328.5,3.0038]
[1732243283797,0.04784809,3328.9,3328.5,3.0038]
[1732243283968,3.04791054,3329.0,3328.5,3.0038]
[1732243284168,3.0,3328.7,3328.5,3.0038]
[1732243284450,6.79406,3328.6,3328.5,3.0038]
[1732243284612,6.84171525,3328.6,3328.5,3.0038]
[1732243285094,0.83745525,3328.6,3328.5,3.0038]
[1732243285303,0.04765525,3328.6,3328.5,3.0038]
[1732243285500,0.7898,3329.3,3328.5,3.7824]
[1732243285705,0.04763911,3328.6,3328.5,3.7824]
[1732243285917,0.7898,3329.3,3328.5,3.0038]
[1732243285918,3.79349,3329.3,3328.5,3.0038]
[1732243286218,0.04763911,3328.6,3328.5,3.0038]
[1732243286373,6.00392,3329.0,3328.5,3.0038]
[1732243286573,0.04760494,3328.6,3328.5,3.0038]
[1732243286766,0.7898,3329.3,3328.5,3.0038]
[1732243286967,0.04760494,3328.6,3328.5,3.0038]
[1732243287174,0.7898,3329.3,3328.5,3.0038]
[1732243287409,3.0,3329.4,3328.6,0.7786]
[1732243287709,4.58788886,3329.5,3328.6,0.7786]
[1732243287710,3.0,3329.5,3328.6,0.7786]
[1732243287886,0.0480421,3329.3,3328.6,0.7786]
[1732243288227,8.38078886,3329.9,3328.7,0.2995]
[1732243288396,0.04797966,3329.2,3328.7,3.3037]
[1732243288594,3.00337,3329.6,3328.7,3.3037]
[1732243288794,0.04791722,3329.1,3328.7,3.3037]
[1732243289021,3.00324,3329.8,3328.7,3.3037]
[1732243289311,5.37768886,3329.9,3328.7,3.71193]
[1732243289523,0.04829182,3329.7,3328.7,3.3037]
[1732243289680,3.04835424,3329.8,3328.7,3.3037]
[1732243289880,0.0482294,3329.6,3328.7,3.3037]
[1732243290080,3.0,3329.8,3328.7,3.71193]
[1732243290382,0.04816697,3329.5,3328.9,0.2995]
[1732243290721,3.0,3329.8,3328.9,0.2995]
[1732243291020,0.04812638,3329.4,3329.0,3.0039]
[1732243291192,0.7826,3330.2,3329.2,0.2995]
[1732243291677,0.0485809,3330.1,3329.3,3.0036]
[1732243292106,3.00267,3330.4,3329.3,3.0036]
[1732243292328,0.047071,3330.0,3329.3,3.0036]
[1732243292537,3.00286,3330.2,3329.3,3.0036]
[1732243292679,0.04700858,3329.9,3329.3,3.0036]
[1732243293027,3.00267,3330.4,3329.3,3.0036]
[1732243293180,0.04694616,3329.8,3329.5,0.2995]
[1732243293375,0.04694616,3329.8,3329.6,3.0034]
[1732243293630,0.7826,3330.5,3329.6,3.0034]
[1732243293977,0.04732655,3330.4,3329.7,0.8223]
[1732243294224,0.04732655,3330.4,3329.7,1.20787316]
[1732243294383,0.7826,3331.3,3329.9,0.8223]
[1732243294577,0.7826,3331.6,3330.1,0.8223]
[1732243294808,0.0478256,3331.2,3330.1,0.8223]
[1732243295007,0.7826,3331.6,3330.2,3.0028]
[1732243295318,0.04659285,3331.5,3330.3,0.8223]
[1732243295621,0.04659285,3331.5,3330.4,3.0026]
[1732243295816,0.04659285,3331.5,3330.5,0.8223]
[1732243296115,0.04654306,3331.4,3330.5,0.8223]
[1732243296325,0.7826,3332.2,3330.7,0.8223]
[1732243296619,0.0464807,3331.3,3330.7,0.8223]
[1732243296917,0.04641881,3331.2,3330.8,3.0023]
[1732243297136,3.00129,3331.9,3330.8,3.0023]
[1732243297289,0.04636071,3331.1,3330.9,0.8223]
[1732243297488,3.0,3331.7,3330.9,0.8223]
[1732243297801,3.0,3331.9,3331.0,3.0021]
[1732243298222,0.7826,3332.2,3331.0,3.0021]
[1732243298425,3.00113,3332.1,3331.0,3.0021]
[1732243298621,3.04811423,3332.1,3331.0,3.0021]
[1732243299121,0.04698423,3332.1,3331.0,3.0021]
[1732243299328,0.04698423,3332.1,3331.1,0.8223]
[1732243299809,0.04698423,3332.1,3331.2,3.38434]
[1732243300016,0.04698423,3332.1,3331.3,0.8223]
[1732243300188,3.00082,3332.5,3331.3,0.8223]
[1732243300521,0.04720206,3332.4,3331.4,3.0017]